[Event "Early-Titled-Tuesday-Blitz-September-05-2023"]
[Site "Chess.com"]
[Date "2023.09.05"]
[Round "2"]
[White "Zhigalko_Sergei"]
[Black "SashaKuzhilniy"]
[Result "0-1"]
[WhiteElo "2891"]
[BlackElo "2620"]
[TimeControl "180+1"]
[EndTime "8:19:27 PDT"]
[Termination "SashaKuzhilniy won on time"]

1. e4 {[%clk 0:03:00.9]} 1... c5 {[%clk 0:02:59.5]} 2. Nf3 {[%clk 0:03:00.9]}
2... d6 {[%clk 0:02:59.6]} 3. d4 {[%clk 0:03:01.3]} 3... cxd4 {[%clk 0:03:00.5]}
4. Qxd4 {[%clk 0:03:02.1]} 4... Nf6 {[%clk 0:03:00.5]} 5. Nc3 {[%clk 0:03:02.1]}
5... Nc6 {[%clk 0:02:59.9]} 6. Bb5 {[%clk 0:03:02.1]} 6... Bd7 {[%clk
0:03:00.4]} 7. Bxc6 {[%clk 0:03:02.5]} 7... Bxc6 {[%clk 0:03:01.3]} 8. Bg5
{[%clk 0:03:02.8]} 8... e6 {[%clk 0:03:01.2]} 9. O-O-O {[%clk 0:03:03]} 9... Be7
{[%clk 0:03:01.7]} 10. Rhe1 {[%clk 0:03:03.3]} 10... O-O {[%clk 0:03:01.4]} 11.
Kb1 {[%clk 0:03:03.8]} 11... Qa5 {[%clk 0:02:45.8]} 12. Qd2 {[%clk 0:03:03.4]}
12... Rfc8 {[%clk 0:02:40.2]} 13. Nd4 {[%clk 0:03:02.3]} 13... b5 {[%clk
0:02:34.9]} 14. Nd5 {[%clk 0:02:59.5]} 14... Qxd2 {[%clk 0:02:30.5]} 15. Nxe7+
{[%clk 0:02:58.3]} 15... Kf8 {[%clk 0:02:30.2]} 16. Rxd2 {[%clk 0:02:33.8]}
16... Kxe7 {[%clk 0:02:29.2]} 17. f3 {[%clk 0:02:12.3]} 17... h6 {[%clk
0:02:09.8]} 18. Bh4 {[%clk 0:02:12.4]} 18... Bd7 {[%clk 0:01:39.5]} 19. e5
{[%clk 0:00:58]} 19... dxe5 {[%clk 0:01:40.4]} 20. Rxe5 {[%clk 0:00:57.7]} 20...
g5 {[%clk 0:01:19.7]} 21. Bg3 {[%clk 0:00:57.1]} 21... Nh5 {[%clk 0:01:15]} 22.
Bf2 {[%clk 0:00:40.4]} 22... f6 {[%clk 0:00:56.2]} 23. Nf5+ {[%clk 0:00:22.1]}
23... Kf8 {[%clk 0:00:55]} 24. Re1 {[%clk 0:00:16.8]} 24... Rc7 {[%clk
0:00:25.5]} 25. Nd6 {[%clk 0:00:03.9]} 25... Nf4 {[%clk 0:00:20.1]} 26. Bg3
{[%clk 0:00:03]} 26... e5 {[%clk 0:00:18.9]} 27. Ne4 {[%clk 0:00:02.4]} 27...
Ke7 {[%clk 0:00:15]} 28. Nc3 {[%clk 0:00:02.2]} 28... Bc6 {[%clk 0:00:13.7]} 29.
Bxf4 {[%clk 0:00:02]} 29... gxf4 {[%clk 0:00:13.8]} 30. a3 {[%clk 0:00:02.3]}
30... Rd8 {[%clk 0:00:09.4]} 31. Rxd8 {[%clk 0:00:01.5]} 31... Kxd8 {[%clk
0:00:10.3]} 32. Kc1 {[%clk 0:00:02]} 32... Ke7 {[%clk 0:00:09.7]} 33. Re2 {[%clk
0:00:02.6]} 33... Rd7 {[%clk 0:00:09.4]} 34. b3 {[%clk 0:00:02.5]} 34... Ke6
{[%clk 0:00:09.6]} 35. Kb2 {[%clk 0:00:02.6]} 35... h5 {[%clk 0:00:08.1]} 36.
Kc1 {[%clk 0:00:02.4]} 36... h4 {[%clk 0:00:08.3]} 37. h3 {[%clk 0:00:02.7]}
37... f5 {[%clk 0:00:07.1]} 38. Re1 {[%clk 0:00:03]} 38... Rd4 {[%clk
0:00:07.1]} 39. Ne2 {[%clk 0:00:03.5]} 39... Rd7 {[%clk 0:00:03.2]} 40. Nxf4+
{[%clk 0:00:04.1]} 40... Kf6 {[%clk 0:00:03.8]} 41. Nd3 {[%clk 0:00:04.5]} 41...
e4 {[%clk 0:00:01.7]} 42. fxe4 {[%clk 0:00:05.4]} 42... Bxe4 {[%clk 0:00:02]}
43. Nc5 {[%clk 0:00:06.3]} 43... Re7 {[%clk 0:00:02.1]} 44. Re2 {[%clk
0:00:03.7]} 44... Ke5 {[%clk 0:00:02.5]} 45. Nd3+ {[%clk 0:00:03.1]} 45... Kd4
{[%clk 0:00:02.7]} 46. Kd2 {[%clk 0:00:03.8]} 46... Rg7 {[%clk 0:00:03.3]} 47.
c3+ {[%clk 0:00:03.8]} 47... Kd5 {[%clk 0:00:03.2]} 48. Nf4+ {[%clk 0:00:04.1]}
48... Ke5 {[%clk 0:00:03.6]} 49. Nd3+ {[%clk 0:00:04.4]} 49... Kd5 {[%clk
0:00:03.4]} 50. Ne1 {[%clk 0:00:02.7]} 50... Rg3 {[%clk 0:00:03.1]} 51. Rf2
{[%clk 0:00:03.2]} 51... Ke5 {[%clk 0:00:02.6]} 52. a4 {[%clk 0:00:03.2]} 52...
bxa4 {[%clk 0:00:02.6]} 53. bxa4 {[%clk 0:00:04.1]} 53... a5 {[%clk 0:00:03.4]}
54. c4 {[%clk 0:00:02]} 54... Kd4 {[%clk 0:00:03.8]} 55. Nf3+ {[%clk 0:00:02.2]}
55... Bxf3 {[%clk 0:00:03.8]} 56. Rxf3 {[%clk 0:00:02.1]} 56... Rxg2+ {[%clk
0:00:04]} 57. Ke1 {[%clk 0:00:02.7]} 57... Ke4 {[%clk 0:00:03.9]} 58. Rc3 {[%clk
0:00:02.9]} 58... Ra2 {[%clk 0:00:03.7]} 59. c5 {[%clk 0:00:02.9]} 59... Ra1+
{[%clk 0:00:04.3]} 60. Kd2 {[%clk 0:00:03.1]} 60... Ra2+ {[%clk 0:00:05]} 61.
Kc1 {[%clk 0:00:03.3]} 61... Ra1+ {[%clk 0:00:05]} 62. Kb2 {[%clk 0:00:03.7]}
62... Rxa4 {[%clk 0:00:05.9]} 63. c6 {[%clk 0:00:03.9]} 63... Rb4+ {[%clk
0:00:06.5]} 64. Ka3 {[%clk 0:00:02.9]} 64... Rb8 {[%clk 0:00:07.4]} 65. Ka4
{[%clk 0:00:02.9]} 65... Rc8 {[%clk 0:00:07.3]} 66. Kxa5 {[%clk 0:00:03]} 66...
Kd5 {[%clk 0:00:07.9]} 67. Kb6 {[%clk 0:00:02.6]} 67... f4 {[%clk 0:00:05.7]}
68. Kb7 {[%clk 0:00:02.9]} 68... Rh8 {[%clk 0:00:05.4]} 69. c7 {[%clk
0:00:02.9]} 69... Ke4 {[%clk 0:00:05.9]} 70. Rc4+ {[%clk 0:00:02.6]} 70... Ke3
{[%clk 0:00:06.1]} 71. Rc3+ {[%clk 0:00:03.1]} 71... Ke2 {[%clk 0:00:06.4]} 72.
Rc6 {[%clk 0:00:01.7]} 72... f3 {[%clk 0:00:06.5]} 73. Re6+ {[%clk 0:00:02.3]}
73... Kf1 {[%clk 0:00:06.3]} 74. Rd6 {[%clk 0:00:02.8]} 74... Rh7 {[%clk
0:00:06.6]} 75. Kc6 {[%clk 0:00:02.4]} 75... Rxc7+ {[%clk 0:00:07.1]} 76. Kxc7
{[%clk 0:00:03.3]} 76... f2 {[%clk 0:00:07.8]} 77. Rg6 {[%clk 0:00:02.9]} 77...
Ke1 {[%clk 0:00:07.2]} 78. Re6+ {[%clk 0:00:03.3]} 78... Kd2 {[%clk 0:00:07.7]}
79. Rf6 {[%clk 0:00:03.4]} 79... Ke2 {[%clk 0:00:08.3]} 80. Re6+ {[%clk
0:00:03.4]} 80... Kd2 {[%clk 0:00:08.6]} 81. Rf6 {[%clk 0:00:02.4]} 81... Ke2
{[%clk 0:00:09.1]} 82. Rxf2+ {[%clk 0:00:02.2]} 82... Kxf2 {[%clk 0:00:09.5]}
83. Kd6 {[%clk 0:00:03]} 83... Kg3 {[%clk 0:00:10.2]} 84. Ke5 {[%clk 0:00:03.5]}
84... Kxh3 {[%clk 0:00:10.9]} 85. Kf4 {[%clk 0:00:03.6]} 85... Kg2 {[%clk
0:00:11.5]} 86. Ke3 {[%clk 0:00:04.1]} 86... h3 {[%clk 0:00:12.4]} 87. Ke2
{[%clk 0:00:04.6]} 87... h2 {[%clk 0:00:13.3]} 0-1

[Event "Early-Titled-Tuesday-Blitz-September-05-2023"]
[Site "Chess.com"]
[Date "2023.09.05"]
[Round "2"]
[White "bascheyaro"]
[Black "NovozhilovSemen"]
[Result "1/2-1/2"]
[WhiteElo "2809"]
[BlackElo "2571"]
[TimeControl "180+1"]
[EndTime "8:19:53 PDT"]
[Termination "Game drawn - insufficient material"]

1. d4 {[%clk 0:02:59.7]} 1... Nf6 {[%clk 0:02:26.2]} 2. Nf3 {[%clk 0:02:59.5]}
2... e6 {[%clk 0:02:26]} 3. Bf4 {[%clk 0:02:59.1]} 3... c5 {[%clk 0:02:25.6]} 4.
e3 {[%clk 0:02:59.4]} 4... cxd4 {[%clk 0:02:25.5]} 5. exd4 {[%clk 0:02:59.8]}
5... b6 {[%clk 0:02:26.1]} 6. Nbd2 {[%clk 0:02:59.2]} 6... Bb7 {[%clk
0:02:25.8]} 7. Bd3 {[%clk 0:02:59.5]} 7... d6 {[%clk 0:02:23.8]} 8. O-O {[%clk
0:02:59.3]} 8... Nbd7 {[%clk 0:02:23.2]} 9. Qe2 {[%clk 0:02:59.5]} 9... a6
{[%clk 0:02:21.4]} 10. Rfe1 {[%clk 0:02:59.1]} 10... Be7 {[%clk 0:02:21]} 11. c3
{[%clk 0:02:58]} 11... O-O {[%clk 0:02:20.5]} 12. h3 {[%clk 0:02:56.8]} 12...
Qb8 {[%clk 0:02:18.1]} 13. a4 {[%clk 0:02:54.9]} 13... Bd8 {[%clk 0:02:17.4]}
14. Ng5 {[%clk 0:02:48.3]} 14... Bc7 {[%clk 0:02:13.8]} 15. Nc4 {[%clk
0:02:35.3]} 15... h6 {[%clk 0:02:10.8]} 16. Nf3 {[%clk 0:02:11.5]} 16... Re8
{[%clk 0:02:08.3]} 17. Bg3 {[%clk 0:02:00.5]} 17... e5 {[%clk 0:01:27.1]} 18.
dxe5 {[%clk 0:01:55.3]} 18... dxe5 {[%clk 0:01:27.1]} 19. Bf5 {[%clk 0:01:37.3]}
19... e4 {[%clk 0:01:16.3]} 20. Bxc7 {[%clk 0:01:37.2]} 20... Qxc7 {[%clk
0:01:16.4]} 21. Nd4 {[%clk 0:01:37.1]} 21... Nc5 {[%clk 0:01:14.7]} 22. a5
{[%clk 0:01:32.1]} 22... b5 {[%clk 0:01:14.1]} 23. Nb6 {[%clk 0:01:32]} 23...
Rad8 {[%clk 0:01:13.2]} 24. h4 {[%clk 0:01:16.7]} 24... g6 {[%clk 0:01:09.9]}
25. Bh3 {[%clk 0:01:16.8]} 25... Nd3 {[%clk 0:01:08.4]} 26. Red1 {[%clk
0:01:16.8]} 26... Nf4 {[%clk 0:00:56.9]} 27. Qe3 {[%clk 0:01:17]} 27... N6d5
{[%clk 0:00:55.8]} 28. Qg3 {[%clk 0:01:11.4]} 28... Nxb6 {[%clk 0:00:52.3]} 29.
axb6 {[%clk 0:01:11.4]} 29... Nxh3+ {[%clk 0:00:51.8]} 30. gxh3 {[%clk 0:01:10]}
30... Qxb6 {[%clk 0:00:51.1]} 31. h5 {[%clk 0:01:10.6]} 31... Kh7 {[%clk
0:00:45.3]} 32. hxg6+ {[%clk 0:01:09.5]} 32... Qxg6 {[%clk 0:00:44.9]} 33. Qxg6+
{[%clk 0:01:07.6]} 33... Kxg6 {[%clk 0:00:45.8]} 34. Kg2 {[%clk 0:00:45.5]}
34... f5 {[%clk 0:00:43.2]} 35. Kg3 {[%clk 0:00:45.8]} 35... e3 {[%clk
0:00:38.4]} 36. f3 {[%clk 0:00:43.5]} 36... b4 {[%clk 0:00:21.4]} 37. Kf4 {[%clk
0:00:42]} 37... Kf6 {[%clk 0:00:20.5]} 38. Nxf5 {[%clk 0:00:19.6]} 38... Rxd1
{[%clk 0:00:18.6]} 39. Rxd1 {[%clk 0:00:20.5]} 39... bxc3 {[%clk 0:00:17]} 40.
bxc3 {[%clk 0:00:19.2]} 40... e2 {[%clk 0:00:17.5]} 41. Re1 {[%clk 0:00:19.5]}
41... a5 {[%clk 0:00:13.9]} 42. Ne3 {[%clk 0:00:15.1]} 42... Ba6 {[%clk
0:00:13.1]} 43. c4 {[%clk 0:00:15.7]} 43... a4 {[%clk 0:00:12.1]} 44. Rxe2
{[%clk 0:00:16]} 44... Kf7 {[%clk 0:00:10.8]} 45. Ra2 {[%clk 0:00:15.8]} 45...
Rd8 {[%clk 0:00:10.7]} 46. Rxa4 {[%clk 0:00:15.9]} 46... Bc8 {[%clk 0:00:09.6]}
47. Ra7+ {[%clk 0:00:15.7]} 47... Kg6 {[%clk 0:00:10]} 48. Nd5 {[%clk
0:00:15.8]} 48... Bxh3 {[%clk 0:00:10.2]} 49. Ra6+ {[%clk 0:00:14.6]} 49... Kf7
{[%clk 0:00:10.1]} 50. Rxh6 {[%clk 0:00:14.1]} 50... Bf1 {[%clk 0:00:07.4]} 51.
Rh7+ {[%clk 0:00:10.1]} 51... Kg6 {[%clk 0:00:07]} 52. Rc7 {[%clk 0:00:09.9]}
52... Bxc4 {[%clk 0:00:07.1]} 53. Ne7+ {[%clk 0:00:10.1]} 53... Kf6 {[%clk
0:00:05.5]} 54. Nc6 {[%clk 0:00:10.1]} 54... Rd6 {[%clk 0:00:04.3]} 55. Ke3
{[%clk 0:00:08.9]} 55... Bf7 {[%clk 0:00:04.1]} 56. Nd4 {[%clk 0:00:08.1]} 56...
Ra6 {[%clk 0:00:04.2]} 57. Rc3 {[%clk 0:00:07.9]} 57... Ra4 {[%clk 0:00:04.5]}
58. Rc6+ {[%clk 0:00:07.7]} 58... Ke5 {[%clk 0:00:05]} 59. f4+ {[%clk
0:00:07.9]} 59... Kd5 {[%clk 0:00:05.3]} 60. Rc7 {[%clk 0:00:08.2]} 60... Be6
{[%clk 0:00:04.1]} 61. Ne2 {[%clk 0:00:03.9]} 61... Ra3+ {[%clk 0:00:03.4]} 62.
Rc3 {[%clk 0:00:02.8]} 62... Rxc3+ {[%clk 0:00:03]} 63. Nxc3+ {[%clk 0:00:03.7]}
63... Kd6 {[%clk 0:00:03.6]} 64. Ne4+ {[%clk 0:00:04.3]} 64... Ke7 {[%clk
0:00:04.2]} 65. Kd4 {[%clk 0:00:04.9]} 65... Bf5 {[%clk 0:00:04.8]} 66. Ng5
{[%clk 0:00:05.4]} 66... Kf6 {[%clk 0:00:05]} 67. Nf3 {[%clk 0:00:06.2]} 67...
Bg6 {[%clk 0:00:05.5]} 68. Ne5 {[%clk 0:00:06.9]} 68... Bf5 {[%clk 0:00:06]} 69.
Ke3 {[%clk 0:00:07.8]} 69... Bb1 {[%clk 0:00:06.4]} 70. Nf3 {[%clk 0:00:08.5]}
70... Bf5 {[%clk 0:00:06.8]} 71. Nd4 {[%clk 0:00:09.3]} 71... Bh7 {[%clk
0:00:07.4]} 72. Kf3 {[%clk 0:00:10]} 72... Bg6 {[%clk 0:00:08]} 73. Kg4 {[%clk
0:00:10.7]} 73... Bd3 {[%clk 0:00:08.6]} 74. Kh4 {[%clk 0:00:11.1]} 74... Be4
{[%clk 0:00:09.2]} 75. Ne2 {[%clk 0:00:11.4]} 75... Bd3 {[%clk 0:00:09.7]} 76.
Ng3 {[%clk 0:00:12.1]} 76... Bc2 {[%clk 0:00:09.5]} 77. Kg4 {[%clk 0:00:12.8]}
77... Bd1+ {[%clk 0:00:09.4]} 78. Kh3 {[%clk 0:00:13.1]} 78... Bc2 {[%clk
0:00:10.3]} 79. Kh4 {[%clk 0:00:13.8]} 79... Bd1 {[%clk 0:00:10.4]} 80. Kh3
{[%clk 0:00:13.2]} 80... Bf3 {[%clk 0:00:10.7]} 81. Kh2 {[%clk 0:00:13.5]} 81...
Bd1 {[%clk 0:00:11.1]} 82. Kg1 {[%clk 0:00:14.4]} 82... Bc2 {[%clk 0:00:11]} 83.
Kf2 {[%clk 0:00:15.3]} 83... Bg6 {[%clk 0:00:11.3]} 84. Kf3 {[%clk 0:00:15.8]}
84... Bc2 {[%clk 0:00:11.9]} 85. Ke3 {[%clk 0:00:16]} 85... Bd1 {[%clk
0:00:12.2]} 86. Ne4+ {[%clk 0:00:16.2]} 86... Kf5 {[%clk 0:00:12.6]} 87. Nc3
{[%clk 0:00:17.1]} 87... Bc2 {[%clk 0:00:12.5]} 88. Kf3 {[%clk 0:00:17.7]} 88...
Kf6 {[%clk 0:00:12]} 89. Nd5+ {[%clk 0:00:18.1]} 89... Ke6 {[%clk 0:00:12.2]}
90. Ne3 {[%clk 0:00:19]} 90... Bb1 {[%clk 0:00:12.2]} 91. Kg4 {[%clk 0:00:19.5]}
91... Kf6 {[%clk 0:00:12.8]} 92. Nd5+ {[%clk 0:00:19.8]} 92... Ke6 {[%clk
0:00:13.4]} 93. Nc3 {[%clk 0:00:19.5]} 93... Bc2 {[%clk 0:00:14]} 94. Kg5 {[%clk
0:00:19.2]} 94... Bd3 {[%clk 0:00:14.4]} 95. Nd1 {[%clk 0:00:19.1]} 95... Bc2
{[%clk 0:00:14.7]} 96. Nf2 {[%clk 0:00:20]} 96... Bb1 {[%clk 0:00:14.8]} 97. Ng4
{[%clk 0:00:20.6]} 97... Bf5 {[%clk 0:00:15.1]} 98. Ne5 {[%clk 0:00:20.7]} 98...
Be4 {[%clk 0:00:15.7]} 99. Nc6 {[%clk 0:00:20.7]} 99... Bxc6 {[%clk 0:00:15.9]}
100. f5+ {[%clk 0:00:21]} 100... Kf7 {[%clk 0:00:16.8]} 101. f6 {[%clk
0:00:21.2]} 101... Bd7 {[%clk 0:00:17.5]} 102. Kf4 {[%clk 0:00:22.1]} 102...
Kxf6 {[%clk 0:00:18.2]} 1/2-1/2

[Event "Early-Titled-Tuesday-Blitz-September-05-2023"]
[Site "Chess.com"]
[Date "2023.09.05"]
[Round "3"]
[White "nihalsarin"]
[Black "Caterpiller35"]
[Result "1-0"]
[WhiteElo "3125"]
[BlackElo "2524"]
[TimeControl "180+1"]
[EndTime "8:22:07 PDT"]
[Termination "nihalsarin won by resignation"]

1. Nf3 {[%clk 0:03:00.9]} 1... Nf6 {[%clk 0:02:57.1]} 2. b3 {[%clk 0:03:01.8]}
2... g6 {[%clk 0:02:56.2]} 3. Bb2 {[%clk 0:03:02.7]} 3... Bg7 {[%clk 0:02:56.6]}
4. e3 {[%clk 0:03:03.6]} 4... O-O {[%clk 0:02:56.8]} 5. d4 {[%clk 0:03:04.5]}
5... d6 {[%clk 0:02:57.3]} 6. Be2 {[%clk 0:03:04.9]} 6... Nc6 {[%clk 0:02:55.9]}
7. O-O {[%clk 0:03:05.1]} 7... Bg4 {[%clk 0:02:55.7]} 8. c4 {[%clk 0:03:05.7]}
8... a5 {[%clk 0:02:51.5]} 9. h3 {[%clk 0:03:06.1]} 9... Bxf3 {[%clk 0:02:48.5]}
10. Bxf3 {[%clk 0:03:07]} 10... e6 {[%clk 0:02:46.6]} 11. Nc3 {[%clk 0:03:07.3]}
11... d5 {[%clk 0:02:45.8]} 12. Rc1 {[%clk 0:03:07.4]} 12... Re8 {[%clk
0:02:42.6]} 13. Qe2 {[%clk 0:03:07.7]} 13... Nb4 {[%clk 0:02:40.7]} 14. a3
{[%clk 0:03:07.9]} 14... Na6 {[%clk 0:02:37.8]} 15. cxd5 {[%clk 0:03:08.6]}
15... exd5 {[%clk 0:02:38]} 16. Qb5 {[%clk 0:03:09.4]} 16... c6 {[%clk
0:02:24.5]} 17. Qxb7 {[%clk 0:03:09.5]} 17... Qd6 {[%clk 0:02:21.1]} 18. Na4
{[%clk 0:03:09.7]} 18... Reb8 {[%clk 0:02:18.5]} 19. Qxc6 {[%clk 0:03:09.4]}
19... Qxc6 {[%clk 0:02:18.3]} 20. Rxc6 {[%clk 0:03:10.3]} 20... Rxb3 {[%clk
0:02:19.2]} 21. Rfc1 {[%clk 0:03:10.3]} 21... h5 {[%clk 0:02:17.9]} 22. Bd1
{[%clk 0:03:10.3]} 22... Rbb8 {[%clk 0:02:15.1]} 23. Be2 {[%clk 0:03:11]} 1-0

[Event "Early-Titled-Tuesday-Blitz-September-05-2023"]
[Site "Chess.com"]
[Date "2023.09.05"]
[Round "3"]
[White "platy3"]
[Black "Willychess95"]
[Result "1-0"]
[WhiteElo "2923"]
[BlackElo "2707"]
[TimeControl "180+1"]
[EndTime "8:22:22 PDT"]
[Termination "platy3 won by resignation"]

1. e4 {[%clk 0:03:00.9]} 1... c5 {[%clk 0:02:55.9]} 2. Nf3 {[%clk 0:02:58.9]}
2... d6 {[%clk 0:02:55.9]} 3. d4 {[%clk 0:02:58.8]} 3... cxd4 {[%clk 0:02:56.8]}
4. Nxd4 {[%clk 0:02:59.5]} 4... Nf6 {[%clk 0:02:56.8]} 5. Nc3 {[%clk 0:03:00.3]}
5... g6 {[%clk 0:02:56.9]} 6. Be3 {[%clk 0:02:58.2]} 6... a6 {[%clk 0:02:57.1]}
7. f3 {[%clk 0:02:57.8]} 7... b5 {[%clk 0:02:57]} 8. a4 {[%clk 0:02:54.4]} 8...
e5 {[%clk 0:02:54.7]} 9. Nb3 {[%clk 0:02:44.8]} 9... b4 {[%clk 0:02:54.2]} 10.
Nd5 {[%clk 0:02:41.5]} 10... Bb7 {[%clk 0:02:25.6]} 11. Bb6 {[%clk 0:02:38.4]}
1-0

[Event "Early-Titled-Tuesday-Blitz-September-05-2023"]
[Site "Chess.com"]
[Date "2023.09.05"]
[Round "3"]
[White "RamyresCoelho"]
[Black "Rutvij09"]
[Result "0-1"]
[WhiteElo "2298"]
[BlackElo "2526"]
[TimeControl "180+1"]
[EndTime "8:23:30 PDT"]
[Termination "Rutvij09 won by resignation"]

1. e4 {[%clk 0:02:59.5]} 1... c5 {[%clk 0:02:59.1]} 2. Nf3 {[%clk 0:02:59]} 2...
d6 {[%clk 0:02:59.3]} 3. d4 {[%clk 0:02:59.6]} 3... cxd4 {[%clk 0:03:00.1]} 4.
Nxd4 {[%clk 0:03:00.5]} 4... Nf6 {[%clk 0:03:00.7]} 5. Nc3 {[%clk 0:03:01.1]}
5... a6 {[%clk 0:02:59.5]} 6. f3 {[%clk 0:03:00.9]} 6... e5 {[%clk 0:02:57.4]}
7. Nb3 {[%clk 0:03:00.9]} 7... h5 {[%clk 0:02:57.1]} 8. Be3 {[%clk 0:03:00.9]}
8... Be6 {[%clk 0:02:57.7]} 9. Qd2 {[%clk 0:03:01.1]} 9... Be7 {[%clk
0:02:54.8]} 10. O-O-O {[%clk 0:03:01]} 10... Nbd7 {[%clk 0:02:54.8]} 11. h3
{[%clk 0:03:00.1]} 11... b5 {[%clk 0:02:52.3]} 12. f4 {[%clk 0:02:59.7]} 12...
exf4 {[%clk 0:02:49.4]} 13. Bxf4 {[%clk 0:03:00.6]} 13... Ne5 {[%clk 0:02:50.3]}
14. Nd5 {[%clk 0:02:56.2]} 14... Nxe4 {[%clk 0:02:44.2]} 15. Qe1 {[%clk
0:02:52.5]} 15... Bxd5 {[%clk 0:02:35.1]} 16. Rxd5 {[%clk 0:02:51.1]} 16... Nf6
{[%clk 0:02:35.6]} 17. Rd2 {[%clk 0:02:39.6]} 17... Qc7 {[%clk 0:02:35.5]} 18.
Kb1 {[%clk 0:02:32.8]} 18... O-O {[%clk 0:02:28.2]} 19. Nd4 {[%clk 0:02:32.5]}
19... Rfe8 {[%clk 0:02:26.4]} 20. Nf5 {[%clk 0:02:32]} 20... Bf8 {[%clk
0:02:26.5]} 21. Qg3 {[%clk 0:02:27.1]} 21... Ne4 {[%clk 0:02:22.2]} 22. Qh4
{[%clk 0:02:11.7]} 22... Ng6 {[%clk 0:02:16]} 23. Qxh5 {[%clk 0:01:53.1]} 23...
Nxf4 {[%clk 0:02:15.2]} 24. Qg4 {[%clk 0:01:53.3]} 24... Nxd2+ {[%clk
0:02:13.8]} 25. Ka1 {[%clk 0:01:52.3]} 25... Re1+ {[%clk 0:02:12.9]} 0-1

[Event "Early-Titled-Tuesday-Blitz-September-05-2023"]
[Site "Chess.com"]
[Date "2023.09.05"]
[Round "3"]
[White "assezde36"]
[Black "zverr1"]
[Result "1-0"]
[WhiteElo "2773"]
[BlackElo "2489"]
[TimeControl "180+1"]
[EndTime "8:23:34 PDT"]
[Termination "assezde36 won by resignation"]

1. c4 {[%clk 0:02:58.3]} 1... e5 {[%clk 0:02:59.4]} 2. Nf3 {[%clk 0:02:59]} 2...
Nc6 {[%clk 0:02:59.4]} 3. d4 {[%clk 0:02:57.5]} 3... exd4 {[%clk 0:02:59.1]} 4.
Nxd4 {[%clk 0:02:58.4]} 4... g6 {[%clk 0:02:59.7]} 5. Nxc6 {[%clk 0:02:58]} 5...
bxc6 {[%clk 0:03:00.6]} 6. g3 {[%clk 0:02:55.7]} 6... Bg7 {[%clk 0:03:00.2]} 7.
Bg2 {[%clk 0:02:56.4]} 7... Rb8 {[%clk 0:02:59.8]} 8. Nc3 {[%clk 0:02:55.9]}
8... Nf6 {[%clk 0:02:58.2]} 9. O-O {[%clk 0:02:55.5]} 9... O-O {[%clk
0:02:59.1]} 10. Qc2 {[%clk 0:02:56]} 10... Re8 {[%clk 0:02:57.8]} 11. Rd1 {[%clk
0:02:56.1]} 11... c5 {[%clk 0:02:52.9]} 12. b3 {[%clk 0:02:48.4]} 12... d6
{[%clk 0:02:51.3]} 13. Bb2 {[%clk 0:02:42.6]} 13... Bf5 {[%clk 0:02:51.2]} 14.
Qd2 {[%clk 0:02:37.1]} 14... Qe7 {[%clk 0:02:46.7]} 15. e3 {[%clk 0:02:34.5]}
15... Ne4 {[%clk 0:02:42.6]} 16. Nxe4 {[%clk 0:02:33.9]} 16... Bxe4 {[%clk
0:02:43]} 17. Bxg7 {[%clk 0:02:33]} 17... Kxg7 {[%clk 0:02:43.9]} 18. Qa5 {[%clk
0:02:28.9]} 18... Bxg2 {[%clk 0:02:40.9]} 19. Kxg2 {[%clk 0:02:29.8]} 19... Qe4+
{[%clk 0:02:40]} 20. Kg1 {[%clk 0:02:30.2]} 20... Qc6 {[%clk 0:02:33.7]} 21. Rd5
{[%clk 0:02:26.4]} 21... Kg8 {[%clk 0:02:24.3]} 22. Rad1 {[%clk 0:02:25.6]}
22... Qb6 {[%clk 0:02:19.5]} 23. Qc3 {[%clk 0:02:24.6]} 23... Qa6 {[%clk
0:02:18.5]} 24. R1d2 {[%clk 0:02:23.8]} 24... Qc8 {[%clk 0:02:18.2]} 25. h4
{[%clk 0:02:23.5]} 25... Qg4 {[%clk 0:02:15.4]} 26. h5 {[%clk 0:02:19.8]} 26...
gxh5 {[%clk 0:01:54.4]} 27. Qf6 {[%clk 0:02:19.1]} 27... Re6 {[%clk 0:01:49.2]}
28. Rg5+ {[%clk 0:02:17.7]} 28... Kf8 {[%clk 0:01:48.1]} 29. Qg7+ {[%clk
0:02:17.9]} 1-0

[Event "Early-Titled-Tuesday-Blitz-September-05-2023"]
[Site "Chess.com"]
[Date "2023.09.05"]
[Round "3"]
[White "Ncatt"]
[Black "yoelpolanco"]
[Result "1-0"]
[WhiteElo "2456"]
[BlackElo "2225"]
[TimeControl "180+1"]
[EndTime "8:23:38 PDT"]
[Termination "Ncatt won by resignation"]

1. e4 {[%clk 0:03:00.9]} 1... e5 {[%clk 0:02:37.9]} 2. Nf3 {[%clk 0:02:57.4]}
2... Nc6 {[%clk 0:02:37.5]} 3. Bc4 {[%clk 0:02:57.2]} 3... Bc5 {[%clk
0:02:36.3]} 4. O-O {[%clk 0:02:57.7]} 4... Nf6 {[%clk 0:02:35.4]} 5. d4 {[%clk
0:02:57.9]} 5... exd4 {[%clk 0:02:32.8]} 6. e5 {[%clk 0:02:58]} 6... d5 {[%clk
0:02:33.3]} 7. exf6 {[%clk 0:02:58.4]} 7... dxc4 {[%clk 0:02:33.6]} 8. fxg7
{[%clk 0:02:59.3]} 8... Rg8 {[%clk 0:02:33.6]} 9. Bg5 {[%clk 0:03:00]} 9... f6
{[%clk 0:02:29.5]} 10. Qe2+ {[%clk 0:02:58.1]} 10... Kf7 {[%clk 0:02:23.7]} 11.
Qxc4+ {[%clk 0:02:56.8]} 11... Be6 {[%clk 0:02:20]} 12. Qxc5 {[%clk 0:02:56.7]}
12... fxg5 {[%clk 0:02:18.5]} 13. Nxg5+ {[%clk 0:02:53.3]} 13... Kf6 {[%clk
0:02:18.1]} 14. Nd2 {[%clk 0:02:46.2]} 14... Qd5 {[%clk 0:02:08.1]} 15. Nde4+
{[%clk 0:02:36.1]} 15... Kxg7 {[%clk 0:01:56.7]} 16. Nxe6+ {[%clk 0:02:28.7]}
16... Qxe6 {[%clk 0:01:56.3]} 17. Rfe1 {[%clk 0:02:28.1]} 17... Rae8 {[%clk
0:01:50.5]} 18. c3 {[%clk 0:02:14.8]} 18... d3 {[%clk 0:01:36.2]} 19. Rad1
{[%clk 0:02:07.5]} 1-0

[Event "Early-Titled-Tuesday-Blitz-September-05-2023"]
[Site "Chess.com"]
[Date "2023.09.05"]
[Round "3"]
[White "slidingknight2775"]
[Black "Road2GM3000"]
[Result "1-0"]
[WhiteElo "2581"]
[BlackElo "2367"]
[TimeControl "180+1"]
[EndTime "8:23:50 PDT"]
[Termination "slidingknight2775 won by checkmate"]

1. d4 {[%clk 0:03:00.9]} 1... d5 {[%clk 0:02:58.8]} 2. c4 {[%clk 0:03:01.3]}
2... c6 {[%clk 0:02:59.5]} 3. Nf3 {[%clk 0:03:01.6]} 3... Nf6 {[%clk 0:03:00.1]}
4. g3 {[%clk 0:03:01.9]} 4... a6 {[%clk 0:03:00.8]} 5. Bg2 {[%clk 0:03:01.2]}
5... Bg4 {[%clk 0:03:01.6]} 6. cxd5 {[%clk 0:02:59.3]} 6... cxd5 {[%clk
0:03:01.7]} 7. Ne5 {[%clk 0:02:59.1]} 7... Bf5 {[%clk 0:03:01.4]} 8. Qb3 {[%clk
0:02:55.2]} 8... Ra7 {[%clk 0:03:01]} 9. Nc3 {[%clk 0:02:53.3]} 9... e6 {[%clk
0:03:01.1]} 10. O-O {[%clk 0:02:53.1]} 10... Be7 {[%clk 0:03:01.4]} 11. Bf4
{[%clk 0:02:31.6]} 11... O-O {[%clk 0:03:01.1]} 12. h3 {[%clk 0:02:32.1]} 12...
Nbd7 {[%clk 0:03:00.2]} 13. Rfd1 {[%clk 0:02:26.3]} 13... Nxe5 {[%clk
0:02:57.3]} 14. dxe5 {[%clk 0:02:27.2]} 14... Nd7 {[%clk 0:02:56.6]} 15. e4
{[%clk 0:02:08.8]} 15... dxe4 {[%clk 0:02:55.4]} 16. Nxe4 {[%clk 0:02:08.4]}
16... Qe8 {[%clk 0:02:40]} 17. Nd6 {[%clk 0:01:55.3]} 17... Bxd6 {[%clk
0:02:36.6]} 18. Rxd6 {[%clk 0:01:56.2]} 18... b5 {[%clk 0:02:33.4]} 19. Rc1
{[%clk 0:01:51.1]} 19... Qb8 {[%clk 0:02:14.3]} 20. Qc3 {[%clk 0:01:32.2]} 20...
Nb6 {[%clk 0:02:10.4]} 21. b3 {[%clk 0:01:22.1]} 21... Rc8 {[%clk 0:02:08.9]}
22. Qxc8+ {[%clk 0:01:19.5]} 22... Nxc8 {[%clk 0:02:04.7]} 23. Rd8# {[%clk
0:01:18.5]} 1-0